Cogmind - Beta 16.1 @@@ ROGUE MODE // 2026.06.19 @ 13:24:37 Player: Megaknight51 Result: Destroyed by G-67 Veteran with Field Laser Performance ------------- Evolutions (4) 2000 Regions Visited (18) 3600 Robots Destroyed (190) 950 Value Destroyed (6692) 6692 Prototype IDs (20) 400 Alien Tech Used (0) 0 Bonus (1004) 1004 TOTAL SCORE: 14646 Bonus ------- High Alert Combat Kills 123 Entered Garrisons 400 Met Data Miner 300 Acquired ECA 300 Friendly Fire -119 Cogmind --------- Core Integrity 0/850 Matter 206/300 Energy 75/290 System Corruption 8% Temperature Cool (12) Movement Walking (262) Ox2 Location -6/Lower Caves Parts ------- > --- POWER (1) -------- Reinforced Deuterium Engine > --- PROPULSION (4) --- Carbon-fiber Leg Carbon-fiber Leg Improved VSS Leg > --- UTILITY (6) ------ Advanced Heat Sink Cooling System Huge Storage Unit Light Regenerative Plating Improved Hacking Suite Makeshift System Shield > --- WEAPON (4) ------- Great Maul > --- INVENTORY (25) --- Flexi-carbon Leg Flexi-carbon Leg Improved Heat Sink High-capacity Storage Unit Matter Compressor (250) Encrypted Comm Array Kinecellerator Heavy Armor Plating Proton Cannon Remote Datajack Plasma Cutter Peak State ------------ > --- POWER ------------ Neutrino Core > --- PROPULSION ------- Flexi-carbon Leg Flexi-carbon Leg Flexi-carbon Leg Improved VSS Leg > --- UTILITY ---------- Huge Storage Unit Advanced Targeting Computer Light Regenerative Plating Light Regenerative Plating Improved Hacking Suite Makeshift System Shield > --- WEAPON ----------- Field Laser Cooled Plasma Cannon Gauss Rifle Gauss Rifle > --- INVENTORY -------- Improved Deuterium Engine Reinforced Deuterium Engine Neutrino Core Carbon-fiber Leg Carbon-fiber Leg Carbon-fiber Leg Flexi-carbon Leg Flexi-carbon Leg Improved Heat Sink Advanced Heat Sink Cooling System High-capacity Storage Unit Matter Compressor Encrypted Comm Array Kinecellerator Heavy Armor Plating Proton Cannon Heavy Plasma Cannon Heavy Plasma Cannon Heavy Flak Cannon Remote Datajack Plasma Cutter Great Maul [Rating: 77] Favorites ----------- Power Improved Ion Engine Engine Improved Ion Engine Power Core Neutrino Core Propulsion Armored Huge Wheel Treads Improved Treads Leg Flexi-carbon Leg Wheel Armored Huge Wheel Utility Huge Storage Unit Device Advanced Heat Sink Storage Huge Storage Unit Processor Improved Targeting Computer Hackware Hacking Suite Protection Light Regenerative Plating Weapon Improved Assault Rifle Energy Gun Beam Rifle Energy Cannon Cooled Plasma Cannon Ballistic Gun Improved Assault Rifle Ballistic Cannon Gauss Cannon Impact Weapon Great Maul Slashing Weapon Blade Saw Build | -11 -10 -9 -9 -9 -8 -8 -8 -8 -7 -7 -7 -7 -6 -6 -6 -6 -6 -6 ------- Run | Yrd Mat Mat Min Exi Min Mat Gar Mat Fac Low Low Dat Pro Fac Gar Fac Low Low Slots Evolved 8 | . . 2 . . . 2 . . 2 . . . . 2 . . . . Power . | . . . . . . . . . . . . . . . . . . . Propulsion 2 | . . 1 . . . 1 . . . . . . . . . . . . Utility 4 | . . . . . . . . . 2 . . . . 2 . . . . Weapon 2 | . . 1 . . . 1 . . . . . . . . . . . . Parts Attached 156 | 7 4 22 . . 1 5 19 15 6 5 . . 3 18 22 17 5 7 Power 22 | 2 . 5 . . . . 2 1 . 1 . . 1 3 2 1 2 2 Engine 19 | 2 . 5 . . . . 2 1 . 1 . . 1 2 2 1 1 1 Core 3 | . . . . . . . . . . . . . . 1 . . 1 1 Reactor . | . . . . . . . . . . . . . . . . . . . Propulsion 37 | 2 . 7 . . 1 2 10 1 . . . . . 3 2 6 1 2 Treads 6 | . . 2 . . . 1 3 . . . . . . . . . . . Leg 15 | . . . . . . . 4 . . . . . . . 2 6 1 2 Wheel 16 | 2 . 5 . . 1 1 3 1 . . . . . 3 . . . . Hover . | . . . . . . . . . . . . . . . . . . . Flight . | . . . . . . . . . . . . . . . . . . . Utility 29 | 1 2 2 . . . . . 1 3 2 . . 1 5 8 4 . . Device 8 | . . . . . . . . 1 . 1 . . . 1 4 1 . . Storage 4 | 1 2 1 . . . . . . . . . . . . . . . . Processor 4 | . . 1 . . . . . . . . . . . 1 1 1 . . Hackware 6 | . . . . . . . . . 2 1 . . . 2 . 1 . . Protection 7 | . . . . . . . . . 1 . . . 1 1 3 1 . . Artifact . | . . . . . . . . . . . . . . . . . . . Weapon 68 | 2 2 8 . . . 3 7 12 3 2 . . 1 7 10 6 2 3 Energy Gun 24 | . . . . . . 1 5 8 1 2 . . . 2 2 3 . . Energy Cannon 6 | . . 1 . . . . . . . . . . . 1 1 . 1 2 Ballistic Gun 30 | 2 2 7 . . . 2 1 4 1 . . . 1 2 5 2 . 1 Ballistic Cannon 5 | . . . . . . . . . . . . . . 2 1 1 1 . Launcher . | . . . . . . . . . . . . . . . . . . . Special Weapon . | . . . . . . . . . . . . . . . . . . . Impact Weapon 1 | . . . . . . . . . . . . . . . 1 . . . Slashing Weapon 2 | . . . . . . . 1 . 1 . . . . . . . . . Piercing Weapon . | . . . . . . . . . . . . . . . . . . . Special Melee Weapon . | . . . . . . . . . . . . . . . . . . . Unidentified Prototypes 6 | . . 4 . . . . . 1 1 . . . . . . . . . Parts Lost 77 | . . 4 . . . 5 13 1 . 1 2 . . 15 16 2 5 13 Power 9 | . . . . . . 1 . . . 1 1 . . 2 1 . 1 2 Propulsion 23 | . . 4 . . . 2 6 . . . . . . 3 3 . 1 4 Utility 9 | . . . . . . . . . . . 1 . . 2 4 1 . 1 Weapon 36 | . . . . . . 2 7 1 . . . . . 8 8 1 3 6 Highest Loss Streak 11 | . . 2 . . . 5 6 1 . 1 2 . . 11 7 1 5 8 To Critical Strikes 3 | . . . . . . . 1 . . . . . . 2 . . . . Average Backups 21 | . 3 20 25 25 25 23 22 21 19 19 20 20 20 16 21 23 23 17 Power 2 | . 1 2 3 3 3 3 1 3 3 1 . . . 1 4 3 2 1 Propulsion 2 | . . . 1 1 1 . 1 3 4 4 4 4 4 2 . 2 5 3 Utility 7 | . . 6 8 8 8 8 8 8 5 7 8 8 8 6 6 8 7 6 Weapon 7 | . 1 10 12 12 12 11 10 6 5 5 6 6 5 4 6 7 5 2 Tool/Special . | . . . . . . . . . . . . . . . . . . . Unused Backups 50 | . . 11 . . . . 5 17 4 2 . . . . 1 4 . 6 Power 16 | . . 4 . . . . 1 3 1 2 . . . . 1 4 . . Propulsion 1 | . . . . . . . . 1 . . . . . . . . . . Utility 18 | . . 1 . . . . 4 8 1 . . . . . . . . 4 Weapon 13 | . . 6 . . . . . 5 2 . . . . . . . . . Tool/Special 2 | . . . . . . . . . . . . . . . . . . 2 Average Slot Usage (%) 87 | . 93 95 100 100 100 95 84 80 83 84 77 50 80 80 78 96 99 93 Engine 7 | . 14 11 11 11 11 8 9 9 7 7 1 . 3 5 5 5 2 2 Treads 2 | . . 6 11 11 11 17 8 . . . . . . . . . . . Leg 5 | . . . . . . . 2 . . . . . . . 1 23 25 24 Wheel 12 | . 28 24 22 22 22 16 13 17 15 15 15 15 15 12 6 . . . Device 4 | . . . . . . . . 7 5 3 7 7 7 6 11 8 1 6 Storage 8 | . 22 11 11 11 11 9 9 9 7 7 7 7 7 6 6 6 6 6 Processor 5 | . . 10 11 11 11 9 9 1 . . . . . 5 1 6 7 4 Hackware 6 | . . . . . . . . . 8 15 9 7 7 12 13 13 13 13 Protection 2 | . . . . . . . . . 6 3 4 7 7 5 3 3 9 8 Energy Gun 8 | . . . . . . . 9 20 15 15 9 . 7 9 5 7 5 . Energy Cannon 2 | . . . . . . . 5 . . . . . . 1 9 . . 9 Ballistic Gun 17 | . 28 32 33 33 33 34 16 14 13 15 20 4 23 9 5 11 18 5 Ballistic Cannon 1 | . . . . . . . . . . . . . . 1 3 4 . 5 Peak Build Rating 77 | 6 7 25 24 24 24 28 39 43 53 59 59 54 59 68 72 76 77 72 Average Rating 46 | 4 6 20 24 24 24 26 31 40 51 54 55 39 56 61 60 71 73 66 On Entrance 39 | . 6 6 24 24 24 24 20 32 43 50 59 54 54 59 68 59 72 72 Avg Prop Armor Cover (%) 9 | . . 8 8 8 8 12 16 . . . . . . . . . . . Naked Turns . | . . . . . . . . . . . . . . . . . . . Heaviest Build 135 | 13 69 97 97 97 97 100 101 100 104 106 102 99 110 118 129 115 124 135 Greatest Support 80 | 20 20 36 22 22 22 22 56 56 56 56 56 56 56 56 56 80 75 65 Greatest Overweight (x) 36 | . 3 5 4 4 4 9 9 1 1 1 1 1 1 4 36 2 2 2 Average Overweight (x) 1 | . . 2 4 4 4 4 3 1 1 1 1 1 1 1 3 1 1 1 Largest Inventory Capacity 25 | 8 20 25 25 25 25 25 25 25 25 25 25 25 25 25 25 25 25 25 Average Capacity 24 | 6 13 22 25 25 25 25 25 24 25 25 25 25 25 25 25 25 25 25 Most Carried 25 | 2 8 25 25 25 25 25 25 25 25 25 25 25 25 24 25 25 25 21 Average Carried 23 | . 3 20 25 25 25 23 24 24 24 24 24 25 24 20 23 24 24 18 Final Capacity 25 | 8 20 25 25 25 25 25 25 25 25 25 25 25 25 25 25 25 25 25 Final Carried 25 | 2 8 25 25 25 25 24 25 25 25 25 25 25 25 23 24 25 21 12 Class Distribution -------------------- 47% | Scavenger-Gunner 24% | Gunner 14% | Scavenger-Tank 8% | Hacker-Gunner Dominant Class ---------------- Mutant | -10/Materials Gunner | -9/Materials Gunner | -9/Mines Gunner | -9/Exiles Gunner | -8/Mines Gunner | -8/Materials Gunner | -8/Garrison Scavenger-Gunner | -8/Materials Scavenger-Tank | -7/Factory Scavenger-Tank | -7/Lower Caves Scavenger-Tank | -7/Lower Caves Scavenger-Mutant | -7/Data Miner Scavenger-Tank | -6/Proximity Caves Hacker-Gunner | -6/Factory Scavenger-Gunner | -6/Garrison Scavenger-Gunner | -6/Factory Scavenger-Gunner | -6/Lower Caves Scavenger-Gunner | -6/Lower Caves Resources | -11 -10 -9 -9 -9 -8 -8 -8 -8 -7 -7 -7 -7 -6 -6 -6 -6 -6 -6 ----------- Run | Yrd Mat Mat Min Exi Min Mat Gar Mat Fac Low Low Dat Pro Fac Gar Fac Low Low Matter Collected 5980 | 162 161 957 102 . 93 202 611 491 100 381 200 . 138 498 684 630 316 254 Remotely . | . . . . . . . . . . . . . . . . . . . Salvage Created 9149 | . 161 1499 117 . 138 265 1562 1155 96 710 276 . 65 493 1220 851 246 295 Parts 457 | . 15 113 6 . 21 10 62 65 8 22 13 . 4 26 36 30 14 12 Haulers Intercepted 9 | . 1 5 . . . . . 3 . . . . . . . . . . Recyclers Shooed 2 | . . 2 . . . . . . . . . . . . . . . . Parts Field Recycled . | . . . . . . . . . . . . . . . . . . . Retrieved Matter . | . . . . . . . . . . . . . . . . . . . Parts Self-Destructed 62 | . . . . . . . . . . 21 14 . 1 . . . 13 13 Prevented 1 | . . . . . . . . . . 1 . . . . . . . . Parts Restored . | . . . . . . . . . . . . . . . . . . . Kills | -11 -10 -9 -9 -9 -8 -8 -8 -8 -7 -7 -7 -7 -6 -6 -6 -6 -6 -6 ------- Run | Yrd Mat Mat Min Exi Min Mat Gar Mat Fac Low Low Dat Pro Fac Gar Fac Low Low Combat Hostiles Destroyed 206 | . 5 30 3 . 7 5 25 23 1 12 5 . 1 9 58 10 6 6 Guns 162 | . 5 30 3 . 7 5 19 23 1 12 5 . 1 6 31 7 5 2 Cannons 41 | . . . . . . . 6 . . . . . . 3 26 2 1 3 AOE 1 | . . . . . . . . . . . . . . . . 1 . . Classes Destroyed 18 | . 3 5 . . 2 1 2 1 . 1 . . . . 3 . . . Worker 6 | . . . . . 1 . . 2 . . . . . 1 . 2 . . Builder 3 | . . 2 . . . . . . . . . . . 1 . . . . Tunneler 1 | . . . . . 1 . . . . . . . . . . . . . Hauler 9 | . 1 5 . . . . . 3 . . . . . . . . . . Recycler 4 | . . 2 . . . . . . . . . . . . . 2 . . Mechanic 1 | . . . . . . 1 . . . . . . . . . . . . Operator 4 | . . 1 . . . . . 1 1 . . . . . . 1 . . Swarmer 51 | . 3 13 . . 7 1 7 6 . 1 1 . . . 7 2 3 . Cutter 3 | . . . . . . . 3 . . . . . . . . . . . Grunt 39 | . 2 8 3 . . 4 4 6 . 1 . . . . . 7 3 1 Brawler 4 | . . 1 . . . . . 1 . 2 . . . . . . . . Duelist 4 | . . . . . . . 2 . . 1 1 . . . . . . . Sentry 34 | . . 8 . . . . 9 9 1 1 1 . 1 2 2 . . . Specialist 2 | . . . . . . . . . . . . . . . 2 . . . Hunter 12 | . . . . . . . . 1 . . . . . 6 1 . . 4 Programmer 5 | . . . . . . . . . . 1 2 . . 1 . 1 . . Behemoth 2 | . . . . . . . . . . . . . . . 1 . . 1 Decomposer 1 | . . . . . . . . . . . 1 . . . . . . . Assembled 45 | . . . . . . . . . . . . . . . 45 . . . Thug 2 | . . . . . . . . . . 2 . . . . . . . . Savage 3 | . . . . . . . . . . 3 . . . . . . . . Infiltrator 1 | . . . . . . . . . . . . . . . . 1 . . Best Kill Streak 18 | . 6 9 3 . 4 4 4 3 1 5 4 . 1 2 18 5 3 2 Combat Bots Only 18 | . 5 8 3 . 4 3 4 3 1 5 4 . 1 2 18 3 3 2 Max Kills in Single Turn 3 | . 1 2 1 . 2 1 2 2 1 1 2 . 1 1 2 3 1 1 Gunslinging 1 | . . 1 . . . . 1 1 . . 1 . . . . . . . Exploded 1 | . . . . . . . . . . . . . . . . 1 . . Melee . | . . . . . . . . . . . . . . . . . . . Uniques/NPCs Destroyed . | . . . . . . . . . . . . . . . . . . . Combat | -11 -10 -9 -9 -9 -8 -8 -8 -8 -7 -7 -7 -7 -6 -6 -6 -6 -6 -6 -------- Run | Yrd Mat Mat Min Exi Min Mat Gar Mat Fac Low Low Dat Pro Fac Gar Fac Low Low Hostile Shots Fired 1282 | . 20 93 19 . 19 75 167 57 18 30 51 . 21 199 264 39 63 147 Missed 303 | . 7 23 1 . 3 24 36 10 5 13 11 . 8 42 63 12 13 32 Hits 979 | . 13 70 18 . 16 51 131 47 13 17 40 . 13 157 201 27 50 115 Melee 47 | . . 4 . . . . 18 . . 7 5 . . . 13 . . . Projectile 932 | . 13 66 18 . 16 51 113 47 13 10 35 . 13 157 188 27 50 115 AOE 2 | . . . . . . . 2 . . . . . . . . . . . Critical Strikes 34 | . . . 1 . . 2 11 2 . 3 3 . . 2 6 1 1 2 Part Disruptions 3 | . . . . . . . . . . . . . . . 3 . . . Damage Taken 15453 | . 117 775 216 . 134 783 2097 640 93 462 790 . 169 2435 3163 645 899 2035 Core 1677 | . 22 135 10 . 23 78 338 87 . 22 101 . . 346 265 55 19 176 Absorbed by Shields 83 | . . . . . . . 58 . . . . . . . 25 . . . Regen/Repaired (Parts) 2298 | . . 175 . . . . . 1058 . . . . . 352 106 292 118 197 Core Remaining (%) 67 | 100 91 . . . 58 . . 8 . . . . 82 . . . . . Volleys Fired 451 | . 10 74 8 . 11 19 48 45 5 32 17 . 2 36 80 30 13 21 Largest 4 | . 2 3 3 . 3 4 4 4 4 4 4 . 4 4 4 4 4 4 Hottest 252 | . 40 75 69 . 69 134 245 211 171 209 159 . 159 202 238 214 224 252 Shots Fired 1562 | . 20 223 24 . 33 75 164 180 20 128 51 . 8 124 291 106 47 68 Gun 1281 | . 20 223 24 . 33 75 139 180 20 128 51 . 8 99 139 80 42 20 Cannon 281 | . . . . . . . 25 . . . . . . 25 152 26 5 48 Launcher . | . . . . . . . . . . . . . . . . . . . Special . | . . . . . . . . . . . . . . . . . . . Kinetic 982 | . 20 223 24 . 33 74 87 71 10 64 43 . 6 73 107 74 36 37 Thermal 579 | . . . . . . 1 77 109 10 64 8 . 2 51 184 32 11 30 Explosive . | . . . . . . . . . . . . . . . . . . . Electromagnetic 1 | . . . . . . . . . . . . . . . . . . 1 Robot Hit Streak 28 | . 5 28 13 . 5 14 14 28 10 16 6 . 7 14 14 8 8 9 Robot Miss Streak 7 | . 3 5 2 . 2 4 5 2 1 5 5 . 1 6 7 4 5 4 Penetration Max 1 | . . . . . . . . . . . . . . 1 1 . . . Secondary Targets 22 | . . 5 2 . . 2 6 1 . 2 2 . . 1 . . 1 . Max Gunslinging Chain 1 | . . 1 1 . . 1 1 1 . 1 1 . . 1 . . 1 . Shots Hit Robots 957 | . 12 138 18 . 16 48 153 119 11 78 29 . 5 73 137 47 24 49 Core Hits 468 | . 8 57 6 . 9 16 76 49 5 26 14 . 2 32 98 28 14 28 Critical Kills 2 | . . . . . . . . . . 1 . . . . 1 . . . Critical Parts Destroyed 5 | . . 1 . . . 1 . . . . . . . . 2 . . 1 Critical Strikes 30 | . . 1 . . . 1 9 5 1 4 1 . . 2 3 2 . 1 Burn 14 | . . . . . . . 3 5 1 3 1 . . 1 . . . . Meltdown 1 | . . . . . . . . . . . . . . . 1 . . . Destroy 3 | . . 1 . . . 1 . . . 1 . . . . . . . . Blast 3 | . . . . . . . . . . . . . . 1 . 2 . . Smash 3 | . . . . . . . . . . . . . . . 2 . . 1 Sever 6 | . . . . . . . 6 . . . . . . . . . . . Melee Attacks 73 | . . . . . . . 61 . 2 . . . . . 8 . . 2 Impact 10 | . . . . . . . . . . . . . . . 8 . . 2 Slashing 63 | . . . . . . . 61 . 2 . . . . . . . . . Piercing . | . . . . . . . . . . . . . . . . . . . Sneak Attacks . | . . . . . . . . . . . . . . . . . . . Combat Hostiles . | . . . . . . . . . . . . . . . . . . . Follow-up Attacks . | . . . . . . . . . . . . . . . . . . . Damage Inflicted 19740 | . 139 2129 266 . 258 752 3127 1881 181 1471 640 . 46 1284 4227 1592 500 1247 Guns 13305 | . 139 2129 266 . 258 752 1293 1873 181 1471 640 . 46 937 1803 883 412 222 Cannons 4013 | . . . . . . . 411 . . . . . . 335 1868 407 88 904 Explosions 302 | . . . . . . . . . . . . . . . . 302 . . Melee 2099 | . . . . . . . 1423 . . . . . . . 556 . . 120 Ramming 21 | . . . . . . . . 8 . . . . . 12 . . . 1 Kinetic 9476 | . 139 2129 266 . 258 735 805 677 90 651 542 . 23 514 913 792 436 506 Thermal 8113 | . . . . . . 17 899 1196 91 820 98 . 23 758 2758 800 64 589 Explosive . | . . . . . . . . . . . . . . . . . . . Electromagnetic 31 | . . . . . . . . . . . . . . . . . . 31 Impact 676 | . . . . . . . . . . . . . . . 556 . . 120 Slashing 1423 | . . . . . . . 1423 . . . . . . . . . . . Piercing . | . . . . . . . . . . . . . . . . . . . Highest Corruption 8 | . 2 2 2 2 2 . . 2 . 1 6 6 6 1 2 8 8 8 Average Corruption 4 | . 1 2 2 2 2 . . 2 . 1 4 6 6 1 1 6 8 8 Corruption Purged . | . . . . . . . . . . . . . . . . . . . Corruption Blocked . | . . . . . . . . . . . . . . . . . . . Effects 149 | . 2 8 1 1 5 . . 4 . 1 16 5 8 . 9 44 18 27 Message Errors 38 | . . 1 . . 4 . . 1 . 1 4 3 2 . 1 9 4 8 Matter Fused 32 | . . 1 1 . . . . 3 . . 4 1 1 . 1 11 4 5 Heat Flow Errors 20 | . . . . . 1 . . . . . 2 1 2 . 1 7 4 2 Energy Discharges 14 | . 1 2 . 1 . . . . . . . . . . . 6 3 1 Parts Rejected 3 | . . . . . . . . . . . . . . . . 1 1 1 Data Loss (minor) 18 | . 1 1 . . . . . . . . 3 . 2 . 4 3 1 3 Data Loss (major) 8 | . . 2 . . . . . . . . . . . . 1 1 1 3 Misfires 6 | . . 1 . . . . . . . . 1 . . . . 3 . 1 Alerts 5 | . . . . . . . . . . . 2 . 1 . . 2 . . Weapon Failures 5 | . . . . . . . . . . . . . . . 1 1 . 3 Overload Shots 7 | . . . . . . . . . . . . . . . 2 4 1 . Effects 1 | . . . . . . . . . . . . . . . . 1 . . Short Circuit 1 | . . . . . . . . . . . . . . . . 1 . . Overflow Damage 452 | . . . . . . . . . . . . . . 13 328 44 . 67 Projectiles 114 | . . . . . . . . . . . . . . 13 75 17 . 9 Explosions 27 | . . . . . . . . . . . . . . . . 27 . . Melee 311 | . . . . . . . . . . . . . . . 253 . . 58 Knockbacks 11 | . . . . . . . . . . . . . . 3 2 1 3 2 Impact . | . . . . . . . . . . . . . . . . . . . Kinetic 10 | . . . . . . . . . . . . . . 3 1 1 3 2 Secondary 1 | . . . . . . . . . . . . . . . 1 . . . Self-Inflicted Damage 63 | . . . . . . . . 4 . . . . . 6 . 53 . . Shots 1 | . . . . . . . . . . . . . . . . 1 . . Rammed 2 | . . . . . . . . 1 . . . . . 1 . . . . Targets Rammed 3 | . . . . . . . . 1 . . . . . 1 . . . 1 Kicked 1 | . . . . . . . . . . . . . . . . . . 1 Crushed . | . . . . . . . . . . . . . . . . . . . Highest Temperature 575 | . 6 128 65 . 262 119 575 352 172 268 288 148 244 171 243 218 310 563 Average Temperature 90 | . 6 16 44 . 124 44 159 105 64 79 75 84 80 68 70 65 136 131 Received Heat Transfer 3130 | . 30 165 138 . . 459 490 243 24 72 36 . 6 30 624 138 300 375 Effects 24 | . . . . . . . 14 . . . . . . . 2 . 4 4 Shutdowns 5 | . . . . . . . 4 . . . . . . . . . . 1 Energy Bleed 1 | . . . . . . . . . . . . . . . . . 1 . Interference 14 | . . . . . . . 6 . . . . . . . 2 . 3 3 Short Circuit 1 | . . . . . . . 1 . . . . . . . . . . . Damage (minor) 1 | . . . . . . . 1 . . . . . . . . . . . Damage (core) 2 | . . . . . . . 2 . . . . . . . . . . . Siege Activations . | . . . . . . . . . . . . . . . . . . . Martial Activations . | . . . . . . . . . . . . . . . . . . . Shielding Activations . | . . . . . . . . . . . . . . . . . . . Robots Disrupted . | . . . . . . . . . . . . . . . . . . . Combat Hostiles . | . . . . . . . . . . . . . . . . . . . Robots Corrupted 4 | . . . . . . . . . . . . . . . 3 . . 1 Combat Hostiles 4 | . . . . . . . . . . . . . . . 3 . . 1 Parts Fried 8 | . . . . . . . . . . . . . . . 6 . . 2 Impact Corruptions 9 | . . . . . . . . . . . . . . . 7 . . 2 Robots Melted 1 | . . . . . . . . . . . . . . . 1 . . . Combat Hostiles 1 | . . . . . . . . . . . . . . . 1 . . . Parts Melted 20 | . . . . . . . 2 5 . 1 1 . . 4 6 . 1 . Heat Transferred 16248 | . . . . . . 37 2015 3330 296 1776 222 . 37 1488 4872 1127 148 900 Parts Sabotaged . | . . . . . . . . . . . . . . . . . . . Parts Stolen . | . . . . . . . . . . . . . . . . . . . Parts Stripped . | . . . . . . . . . . . . . . . . . . . Power Chain Reactions . | . . . . . . . . . . . . . . . . . . . Alert | -11 -10 -9 -9 -9 -8 -8 -8 -8 -7 -7 -7 -7 -6 -6 -6 -6 -6 -6 ------- Run | Yrd Mat Mat Min Exi Min Mat Gar Mat Fac Low Low Dat Pro Fac Gar Fac Low Low Maximum Alert Level 2 | . . 2 1 . . . 2 2 . . . . . . 2 2 . . Low Security (%) 39 | 100 100 29 56 . 100 100 35 22 100 . . . . 100 16 15 . . Level 1 44 | . . 17 43 . . . 50 74 . . . . . . 52 81 . . Level 2 16 | . . 53 . . . . 13 3 . . . . . . 31 3 . . Level 3 . | . . . . . . . . . . . . . . . . . . . Level 4 . | . . . . . . . . . . . . . . . . . . . Level 5 . | . . . . . . . . . . . . . . . . . . . High Security . | . . . . . . . . . . . . . . . . . . . Max Security . | . . . . . . . . . . . . . . . . . . . Peak Influence 545 | . 115 497 216 . 80 60 545 424 50 . . . . 52 479 417 . . Initial 265 | . . 42 156 . . . . 265 39 . . . . . 18 238 . . Average 229 | . 28 314 194 . 34 26 232 267 10 . . . . 11 349 264 . . Influence Increases 5064 | . 132 990 70 . 170 116 675 736 65 214 101 . 20 285 596 579 140 175 Destroy 0b10 Robot/C 3120 | . 100 600 60 . 140 100 500 460 20 140 100 . 20 180 260 200 120 120 Destroy 0b10 Robot/NC 190 | . 5 50 . . 10 5 30 30 5 . . . . 10 20 25 . . Destroy Leader 598 | . 12 150 10 . 20 10 40 156 10 10 . . . 60 30 30 20 40 Allied During Kill 5 | . . . . . . . . . . 4 1 . . . . . . . Successful Hack 167 | . . 32 . . . . . 41 12 . . . . 32 . 50 . . Disable Machine 270 | . . 15 . . . . . . 15 . . . . . 15 225 . . Anti-Garrison Action 350 | . . . . . . . 100 . . . . . . . 250 . . . Destroy Structure 79 | . . 8 . . . 1 5 4 3 . . . . 3 21 34 . . Partial Spotted 15 | . . . . . . . . 15 . . . . . . . . . . Lose Combat Pursuer 270 | . 15 135 . . . . . 30 . 60 . . . . . 15 . 15 Influence Decreases 5039 | . 30 689 297 176 170 116 130 1194 152 176 139 . 20 258 169 789 384 150 Entered New Map 1135 | . . 60 247 176 . . . 280 48 . 8 . . . 9 216 91 . Time Decay 3014 | . 30 589 50 . 170 70 . 604 98 166 111 . 20 172 . 553 261 120 Lost Part 564 | . . 40 . . . 46 130 10 . 10 . . . 86 160 20 32 30 Lost Ally 20 | . . . . . . . . . . . 20 . . . . . . . Purge Threat 306 | . . . . . . . . 300 6 . . . . . . . . . Squads Dispatched 15 | . 1 . . . . 2 . 3 1 . . . . 3 . 5 . . Investigation 5 | . . . . . . . . 2 . . . . . 1 . 2 . . Extermination 3 | . . . . . . . . . . . . . . 1 . 2 . . Reinforcement 6 | . 1 . . . . 1 . 1 1 . . . . 1 . 1 . . Assault . | . . . . . . . . . . . . . . . . . . . Garrison 1 | . . . . . . 1 . . . . . . . . . . . . Intercept . | . . . . . . . . . . . . . . . . . . . Searches Triggered . | . . . . . . . . . . . . . . . . . . . Data Miner Redirects 1 | . . . . . . . . . . . . . . . . 1 . . Construction Impeded 1 | . . . . . . . . . . . . . . 1 . . . . Haulers Reinforced . | . . . . . . . . . . . . . . . . . . . Active Scanning Responses . | . . . . . . . . . . . . . . . . . . . Cargo Convoy Interrupts . | . . . . . . . . . . . . . . . . . . . Stealth | -11 -10 -9 -9 -9 -8 -8 -8 -8 -7 -7 -7 -7 -6 -6 -6 -6 -6 -6 --------- Run | Yrd Mat Mat Min Exi Min Mat Gar Mat Fac Low Low Dat Pro Fac Gar Fac Low Low Distress Signals 9 | . . 3 . . . 1 . 5 . . . . . . . . . . Communications Jammed . | . . . . . . . . . . . . . . . . . . . Distress Signals . | . . . . . . . . . . . . . . . . . . . Times Spotted 291 | . 10 47 3 . 7 11 27 46 2 15 6 . 5 10 66 17 6 13 Peak Tracking Total 11 | . 6 9 3 . 4 5 6 5 1 7 5 . 4 3 11 3 3 7 Tactical Retreats 18 | . 1 4 . . . . . 2 . 4 . . . . 5 1 . 1 Traps | -11 -10 -9 -9 -9 -8 -8 -8 -8 -7 -7 -7 -7 -6 -6 -6 -6 -6 -6 ------- Run | Yrd Mat Mat Min Exi Min Mat Gar Mat Fac Low Low Dat Pro Fac Gar Fac Low Low Traps Triggered 19 | . 2 1 . . . . 5 2 . . . . . . 3 6 . . Indirectly . | . . . . . . . . . . . . . . . . . . . Trap Hack Attempts . | . . . . . . . . . . . . . . . . . . . Triggered . | . . . . . . . . . . . . . . . . . . . Disarmed . | . . . . . . . . . . . . . . . . . . . Reprogrammed . | . . . . . . . . . . . . . . . . . . . Reused . | . . . . . . . . . . . . . . . . . . . Traps Extracted . | . . . . . . . . . . . . . . . . . . . Installed . | . . . . . . . . . . . . . . . . . . . Triggered . | . . . . . . . . . . . . . . . . . . . Machines | -11 -10 -9 -9 -9 -8 -8 -8 -8 -7 -7 -7 -7 -6 -6 -6 -6 -6 -6 ---------- Run | Yrd Mat Mat Min Exi Min Mat Gar Mat Fac Low Low Dat Pro Fac Gar Fac Low Low Machines Disabled 20 | . . 1 . . . . . . 1 . 1 . . . 2 15 . . Max in Single Turn 12 | . . 1 . . . . . . 1 . 1 . . . 1 12 . . Garrison Access 2 | . . . . . . . . 1 . . . . . . . 1 . . Garrison Relay 1 | . . . . . . . . . . . . . . . 1 . . . Machines Repaired . | . . . . . . . . . . . . . . . . . . . Machines Dismantled . | . . . . . . . . . . . . . . . . . . . Machines Sabotaged . | . . . . . . . . . . . . . . . . . . . Overloaded Fab Kills . | . . . . . . . . . . . . . . . . . . . Hacking | -11 -10 -9 -9 -9 -8 -8 -8 -8 -7 -7 -7 -7 -6 -6 -6 -6 -6 -6 --------- Run | Yrd Mat Mat Min Exi Min Mat Gar Mat Fac Low Low Dat Pro Fac Gar Fac Low Low Machines Accessed 50 | . . 12 . . . 1 . 16 2 . 3 4 . 4 . 8 . . Terminals 27 | . . 9 . . . . . 11 1 . . . . 1 . 5 . . Fabricators 3 | . . . . . . . . . . . . . . 1 . 2 . . Repair Stations 4 | . . 1 . . . . . 2 . . . . . 1 . . . . Recycling Units . | . . . . . . . . . . . . . . . . . . . Scanalyzers 4 | . . 2 . . . . . 2 . . . . . . . . . . Garrison Access 5 | . . . . . . 1 . 1 1 . . . . 1 . 1 . . Total Hacks 174 | . . 43 . . . 1 . 52 13 . 8 31 . 8 . 18 . . Successful 119 | . . 28 . . . 1 . 32 5 . 8 31 . 6 . 8 . . Failed 53 | . . 14 . . . . . 19 8 . . . . 2 . 10 . . Catastrophic 5 | . . 1 . . . . . 1 1 . . . . . . 2 . . Database Lockouts 2 | . . 1 . . . . . 1 . . . . . . . . . . Manual 66 | . . 20 . . . . . 24 10 . . . . 2 . 10 . . Terminals 84 | . . 31 . . . . . 31 10 . . . . 2 . 10 . . Fabricators 8 | . . . . . . . . . . . . . . 2 . 6 . . Repair Stations 24 | . . 8 . . . . . 14 . . . . . 2 . . . . Recycling Units . | . . . . . . . . . . . . . . . . . . . Scanalyzers 9 | . . 4 . . . . . 5 . . . . . . . . . . Garrison Access 10 | . . . . . . 1 . 2 3 . . . . 2 . 2 . . Terminal Hacks 60 | . . 10 . . . . . 7 4 . 8 31 . . . . . . Record 26 | . . 6 . . . . . 3 . . 6 11 . . . . . . Part Schematic 16 | . . 2 . . . . . 1 . . . 13 . . . . . . Robot Schematic 4 | . . . . . . . . . . . . 4 . . . . . . Prototype ID Bank 5 | . . 2 . . . . . . . . . 3 . . . . . . Open Door 2 | . . . . . . . . . . . 2 . . . . . . . Branch Access Points 2 | . . . . . . . . 1 1 . . . . . . . . . Unreport Threat 4 | . . . . . . . . 2 2 . . . . . . . . . Zone Layout 1 | . . . . . . . . . 1 . . . . . . . . . Fabricator Hacks 5 | . . . . . . . . . . . . . . 2 . 3 . . Load Schematic 3 | . . . . . . . . . . . . . . 1 . 2 . . Build 2 | . . . . . . . . . . . . . . 1 . 1 . . Repair Station Hacks 22 | . . 7 . . . . . 13 . . . . . 2 . . . . Scan Component 12 | . . 4 . . . . . 7 . . . . . 1 . . . . Repair 10 | . . 3 . . . . . 6 . . . . . 1 . . . . Recycling Unit Hacks . | . . . . . . . . . . . . . . . . . . . Scanalyzer 8 | . . 4 . . . . . 4 . . . . . . . . . . Insert Component 4 | . . 2 . . . . . 2 . . . . . . . . . . Analyze 4 | . . 2 . . . . . 2 . . . . . . . . . . Garrison Access Hacks 4 | . . . . . . 1 . 1 . . . . . 1 . 1 . . Unlock Access 2 | . . . . . . 1 . . . . . . . 1 . . . . Seal Access 2 | . . . . . . . . 1 . . . . . . . 1 . . Unauthorized Hacks 20 | . . 7 . . . . . 7 1 . . . . 1 . 4 . . Terminals 20 | . . 7 . . . . . 7 1 . . . . 1 . 4 . . Botnet 20 | . . 7 . . . . . 7 1 . . . . 1 . 4 . . Fabricators . | . . . . . . . . . . . . . . . . . . . Repair Stations . | . . . . . . . . . . . . . . . . . . . Recycling Units . | . . . . . . . . . . . . . . . . . . . Scanalyzers . | . . . . . . . . . . . . . . . . . . . Garrison Access . | . . . . . . . . . . . . . . . . . . . Data Cores Recovered 2 | . . 1 . . . . . 1 . . . . . . . . . . Used . | . . . . . . . . . . . . . . . . . . . Hacking Detections 38 | . . 12 . . . 1 . 13 1 . . . . 4 . 7 . . Full Trace Events 4 | . . . . . . . . 1 . . . . . 1 . 2 . . Feedback Events 1 | . . . . . . . . . . . . . . . . 1 . . Hackware Fried 1 | . . . . . . . . . . . . . . . . 1 . . Feedback Blocked . | . . . . . . . . . . . . . . . . . . . Robot Schematics Acquired 4 | . . . . . . . . . . . . 4 . . . . . . Robots Built . | . . . . . . . . . . . . . . . . . . . Authchips . | . . . . . . . . . . . . . . . . . . . Time . | . . . . . . . . . . . . . . . . . . . Total Robot Build Rating . | . . . . . . . . . . . . . . . . . . . Part Schematics Acquired 19 | . . 4 . . . . . 2 . . . 13 . . . . . . Parts Built 2 | . . . . . . . . . . . . . . 1 . 1 . . Authchips . | . . . . . . . . . . . . . . . . . . . Time 152 | . . . . . . . . . . . . . . 76 . 76 . . Total Part Build Rating 10 | . . . . . . . . . . . . . . 5 . 5 . . Part Studies Acquired . | . . . . . . . . . . . . . . . . . . . Parts Repaired 10 | . . 3 . . . . . 6 . . . . . 1 . . . . Time 434 | . . 128 . . . . . 262 . . . . . 44 . . . . Parts Recycled . | . . . . . . . . . . . . . . . . . . . Recycled Matter . | . . . . . . . . . . . . . . . . . . . Retrieved Matter . | . . . . . . . . . . . . . . . . . . . Retrieved Components . | . . . . . . . . . . . . . . . . . . . Parts Scanalyzed 4 | . . 2 . . . . . 2 . . . . . . . . . . Part Schematics Acquired 3 | . . 2 . . . . . 1 . . . . . . . . . . Parts Damaged . | . . . . . . . . . . . . . . . . . . . Bothacking | -11 -10 -9 -9 -9 -8 -8 -8 -8 -7 -7 -7 -7 -6 -6 -6 -6 -6 -6 ------------ Run | Yrd Mat Mat Min Exi Min Mat Gar Mat Fac Low Low Dat Pro Fac Gar Fac Low Low Used RIF Installer . | . . . . . . . . . . . . . . . . . . . Robots Hacked . | . . . . . . . . . . . . . . . . . . . Non-combat . | . . . . . . . . . . . . . . . . . . . Combat . | . . . . . . . . . . . . . . . . . . . Robot Hacks Applied . | . . . . . . . . . . . . . . . . . . . Relay Couplers Released 4 | . . . . . . . . . . . . . . . 4 . . . Machine Destruction 4 | . . . . . . . . . . . . . . . 4 . . . Fabnet Peak Effective % . | . . . . . . . . . . . . . . . . . . . Robots Rewired 2 | . . . . . . . . . . 2 . . . . . . . . Allies Hacked 1 | . . . . . . . . . . . 1 . . . . . . . Hacks Repelled . | . . . . . . . . . . . . . . . . . . . Allies | -11 -10 -9 -9 -9 -8 -8 -8 -8 -7 -7 -7 -7 -6 -6 -6 -6 -6 -6 -------- Run | Yrd Mat Mat Min Exi Min Mat Gar Mat Fac Low Low Dat Pro Fac Gar Fac Low Low Total Allies 2 | . . . . . . . . . . 2 . . . . . . . . Largest Group 2 | . . . . . . . . . . 2 2 . . . . . . . Highest-Rated Group 46 | . . . . . . . . . . 46 46 . . . . . . . Highest-Rated Ally 30 | . . . . . . . . . . 30 30 . . . . . . . Initial Warlord ECA Mod 5 | . . . . . . . . 2 1 1 1 1 . . . 5 1 1 Warlord Squad Rendezvous 4 | . . . . . . . . . . . . . . . . 4 . . Muscle 1 | . . . . . . . . . . . . . . . . 1 . . Ranger 1 | . . . . . . . . . . . . . . . . 1 . . Chimera 1 | . . . . . . . . . . . . . . . . 1 . . Ghost 1 | . . . . . . . . . . . . . . . . 1 . . Total Orders . | . . . . . . . . . . . . . . . . . . . Ally Attacks 4 | . . . . . . . . . . 4 . . . . . . . . Total Damage 18 | . . . . . . . . . . 18 . . . . . . . . Kills . | . . . . . . . . . . . . . . . . . . . Allies Corrupted . | . . . . . . . . . . . . . . . . . . . Allies Melted . | . . . . . . . . . . . . . . . . . . . Intel | -11 -10 -9 -9 -9 -8 -8 -8 -8 -7 -7 -7 -7 -6 -6 -6 -6 -6 -6 ------- Run | Yrd Mat Mat Min Exi Min Mat Gar Mat Fac Low Low Dat Pro Fac Gar Fac Low Low Active Infowar (turns) . | . . . . . . . . . . . . . . . . . . . Robot Analysis Total . | . . . . . . . . . . . . . . . . . . . Derelict Logs Recovered 5 | . . . 1 . . . . . . 2 . . . . . . 2 . Drone Launches . | . . . . . . . . . . . . . . . . . . . Drone Recoveries . | . . . . . . . . . . . . . . . . . . . Exploration | -11 -10 -9 -9 -9 -8 -8 -8 -8 -7 -7 -7 -7 -6 -6 -6 -6 -6 -6 ------------- Run | Yrd Mat Mat Min Exi Min Mat Gar Mat Fac Low Low Dat Pro Fac Gar Fac Low Low Turns Passed 13331 | 51 202 1859 109 145 386 189 1384 1953 401 720 711 167 271 751 1103 1601 635 693 Spaces Moved 7014 | 50 182 1085 58 101 241 73 595 1098 303 436 446 95 215 359 387 747 299 244 Core 3 | 1 . . . . . . . . . . . . . . 2 . . . Treads 4 | . . . . . . . 4 . . . . . . . . . . . Legs 1360 | . . . . . . . 21 . . . . . . . 49 747 299 244 Wheels 5647 | 49 182 1085 58 101 241 73 570 1098 303 436 446 95 215 359 336 . . . Hover . | . . . . . . . . . . . . . . . . . . . Flight . | . . . . . . . . . . . . . . . . . . . Fastest Speed 50 | 50 80 95 145 145 145 145 115 115 115 115 115 115 115 115 130 187 187 187 Average Speed 138 | 79 89 123 145 145 145 153 146 115 115 115 115 115 115 121 175 191 187 222 Slowest Speed 1850 | 80 125 155 145 145 145 215 560 115 115 115 115 115 115 160 1850 260 262 262 Overloaded Moves . | . . . . . . . . . . . . . . . . . . . Propulsion Burnouts . | . . . . . . . . . . . . . . . . . . . Robots Hopped . | . . . . . . . . . . . . . . . . . . . Potential Cave-ins . | . . . . . . . . . . . . . . . . . . . Cave-ins Triggered . | . . . . . . . . . . . . . . . . . . . Exploration Rate (%) 39 | 3 29 87 11 23 50 9 56 85 7 52 52 69 44 9 33 18 59 45 Regions Visited 18 Branch Regions 9 Pre-discovered Areas 3 | . . . . . . . . . . 1 . 1 . . . . 1 . Known Exits Taken 4 | . . . . . . 1 . . 1 . . . . 1 . 1 . . Unknown Exits Taken 12 | 1 1 1 1 1 1 . . 1 . 1 1 1 1 . . . 1 . Scrap Searched 9 | . . . 1 . . . . . . 1 3 . 3 . . . 1 . Spaces Dug 3 | . . . . . . . . . 1 . . . . 2 . . . . Terrain Destroyed 55 | . . . . . . . . . 1 . . . . 3 8 34 1 8 Melee 1 | . . . . . . . . . 1 . . . . . . . . . Projectile 30 | . . . . . . . . . . . . . . 3 8 10 1 8 AOE 24 | . . . . . . . . . . . . . . . . 24 . . Terrain Rammed . | . . . . . . . . . . . . . . . . . . . Walls Destroyed . | . . . . . . . . . . . . . . . . . . . Machines Disabled . | . . . . . . . . . . . . . . . . . . . Actions | -11 -10 -9 -9 -9 -8 -8 -8 -8 -7 -7 -7 -7 -6 -6 -6 -6 -6 -6 --------- Run | Yrd Mat Mat Min Exi Min Mat Gar Mat Fac Low Low Dat Pro Fac Gar Fac Low Low Total 9492 | 57 202 1455 65 100 253 101 881 1722 344 589 615 152 236 593 593 858 340 336 Wait 1396 | . 2 214 . . . 3 86 490 16 84 142 50 13 160 51 19 15 51 Move 6997 | 49 181 1084 57 100 240 73 594 1097 302 435 445 94 214 358 386 746 298 244 Hop . | . . . . . . . . . . . . . . . . . . . Pick Up 142 | 1 3 33 . . . 1 15 34 6 3 3 . 1 13 14 13 1 1 Fast Attach 60 | 6 1 8 . . . 1 11 3 . 1 2 4 1 5 5 9 2 1 Attach 67 | . . 2 . . . 3 9 4 2 1 1 . . 14 13 5 4 9 Detach 7 | . 1 . . . . . . 1 . . . . . 2 1 2 . . Swap 99 | 1 3 17 . . 1 1 10 13 6 8 1 . 2 4 9 11 6 6 Drop 109 | . 1 23 . . 1 . 12 34 5 5 3 4 3 . 4 13 1 . Fire 451 | . 10 74 8 . 11 19 48 45 5 32 17 . 2 36 80 30 13 21 Melee 73 | . . . . . . . 61 . 2 . . . . . 8 . . 2 Ram 2 | . . . . . . . . 1 . . . . . 1 . . . . Kick 1 | . . . . . . . . . . . . . . . . . . 1 Crush . | . . . . . . . . . . . . . . . . . . . Escape Stasis 67 | . . . . . . . 35 . . . . . . . 22 10 . . Rewire 21 | . . . . . . . . . . 20 1 . . . . . . . Trap . | . . . . . . . . . . . . . . . . . . . Miscellaneous . | . . . . . . . . . . . . . . . . . . . Route ------- -11/Scrapyard -10/Materials -9/Materials (discovered 3 exits: *Mat x2 / [*Min]) -9/Mines -9/Exiles -8/Mines (discovered 2 exits: *Mat x2) -8/Materials -8/Garrison -8/Materials -7/Factory (discovered 3 exits: Sto / *Low x2) -7/Lower Caves -7/Lower Caves -7/Data Miner -6/Proximity Caves -6/Factory (discovered 2 exits: *Fac / Gar) -6/Garrison -6/Factory (discovered 2 exits: *Fac / *Low) -6/Lower Caves -6/Lower Caves History --------- Turn | Location | Event 13 | -11/Scrapyard | Discovered new exit (range 15) 52 | -11/Scrapyard | Entered Materials 187 | -10/Materials | Discovered new exit (range 13) 254 | -10/Materials | Entered another Materials area 254 | -9/Materials | Evolved 2 slots: Propulsion x1, Weapon x1 545 | -9/Materials | Build established: Gunner 682 | -9/Materials | Central database locked down 778 | -9/Materials | Discovered new exit (range 3) 828 | -9/Materials | Destroyed 8 combat bots 1420 | -9/Materials | Discovered new exit (range 14) 1718 | -9/Materials | Repaired Wheel 1771 | -9/Materials | Repaired Imp. Assault Rifle 1823 | -9/Materials | Repaired Imp. Assault Rifle 2049 | -9/Materials | Discovered new exit (range 8) 2113 | -9/Materials | Entered Mines 2166 | -9/Mines | Learned 2 Materials zone layouts 2216 | -9/Mines | Deemed a non-threat by the Exiles lab entrance 2216 | -9/Mines | Discovered new exit (range 5) 2222 | -9/Mines | Entered Exiles 2260 | -9/Exiles | Met 8R-AWN 2280 | -9/Exiles | Met EX-HEX 2349 | -9/Exiles | Discovered new exit (range 14) 2367 | -9/Exiles | Entered Mines 2673 | -8/Mines | Discovered new exit (range 8) 2693 | -8/Mines | Discovered new exit (range 5) 2753 | -8/Mines | Entered Materials 2753 | -8/Materials | Evolved 2 slots: Propulsion x1, Weapon x1 2906 | -8/Materials | Garrison activated, responded to threat 2941 | -8/Materials | Identified exit to Garrison 2942 | -8/Materials | Entered Garrison 2966 | -8/Garrison | Lost 5 parts (1p2n2w) 2976 | -8/Garrison | Triggered checkpoint 3220 | -8/Garrison | Triggered checkpoint 3396 | -8/Garrison | Triggered checkpoint 3400 | -8/Garrison | Triggered checkpoint 3468 | -8/Garrison | Lost 6 parts (3n3w) 3767 | -8/Garrison | Discovered new exit (range 16) 3888 | -8/Garrison | Triggered checkpoint 4082 | -8/Garrison | Triggered checkpoint 4242 | -8/Garrison | Core integrity fell below 50% 4326 | -8/Garrison | Entered Materials 4424 | -8/Materials | Repaired Arm. Huge Wheel 4627 | -8/Materials | Build established: Scavenger-Gunner 4701 | -8/Materials | Core integrity fell below 20% 5116 | -8/Materials | Repaired Arm. Huge Wheel 5162 | -8/Materials | Repaired Arm. Huge Wheel 5207 | -8/Materials | Repaired Arm. Huge Wheel 5278 | -8/Materials | Repaired Enh. Autogun 5459 | -8/Materials | Repaired Huge Storage Unit 5622 | -8/Materials | Discovered new exit (range 15) 5876 | -8/Materials | Central database locked down 6279 | -8/Materials | Entered Factory 6279 | -7/Factory | Evolved 2 slots: Utility x2 6582 | -7/Factory | Build established: Scavenger-Tank 6607 | -7/Factory | Identified exit to Storage 6607 | -7/Factory | Identified exit to Lower Caves 6680 | -7/Factory | Entered Lower Caves 6686 | -7/Lower Caves | Met a Warlord Commander 6687 | -7/Lower Caves | Learned location of Warlord (-4) 6688 | -7/Lower Caves | Warlord Commander delivered Encrypted Comm Array 6688 | -7/Lower Caves | Found Encrypted Comm Array 7051 | -7/Lower Caves | Attracted the attention of an 0b10 outpost 7175 | -7/Lower Caves | Learned Factory terminal intel 7339 | -7/Lower Caves | Discovered new exit (range 15) 7356 | -7/Lower Caves | Build established: Scavenger-Gunner 7384 | -7/Lower Caves | Learned Factory trap positions 7400 | -7/Lower Caves | Entered another Lower Caves area 7400 | -7/Lower Caves | Accompanied by 2 allies 7585 | -7/Lower Caves | P-60 Hacker assimilated allied Fighter 4a 7722 | -7/Lower Caves | Learned Extension trap positions 7722 | -7/Lower Caves | Learned Factory stockpile data 7722 | -7/Lower Caves | Learned Armory security intel 7722 | -7/Lower Caves | Learned Factory terminal intel 7722 | -7/Lower Caves | Learned Factory garrison access intel 7722 | -7/Lower Caves | Learned Armory garrison access intel 7948 | -7/Lower Caves | Build established: Scavenger-Tank 7993 | -7/Lower Caves | Encountered a Warlord checkpoint 8095 | -7/Lower Caves | Discovered new exit (range 15) 8111 | -7/Lower Caves | Entered Data Miner 8111 | -7/Data Miner | Discovered new exit (range 6) 8135 | -7/Data Miner | Met Data Miner 8170 | -7/Data Miner | Learned location of Section 7 (-2) 8170 | -7/Data Miner | Acquired the access code to Warlord's prototype stash 8205 | -7/Data Miner | Received God Mode back door access code from Data Miner 8278 | -7/Data Miner | Entered Proximity Caves 8387 | -6/Proximity Caves | Attracted the attention of an 0b10 checkpoint 8538 | -6/Proximity Caves | Discovered new exit (range 11) 8549 | -6/Proximity Caves | Entered Factory 8549 | -6/Factory | Evolved 2 slots: Utility x2 8550 | -6/Factory | Loaded intel: 92 trap records 8552 | -6/Factory | Loaded intel: 28 terminal locations 8553 | -6/Factory | Loaded intel: 4 garrison access locations 8723 | -6/Factory | Fabricated Lgt. Regenerative Plating (x1) 8839 | -6/Factory | Lost 11 parts (2p1n2u6w) 9101 | -6/Factory | Build established: Hacker-Gunner 9137 | -6/Factory | Repaired Arm. Huge Wheel 9171 | -6/Factory | Discovered new exit (range 14) 9238 | -6/Factory | Identified exit to Factory 9295 | -6/Factory | Identified exit to Garrison 9300 | -6/Factory | Entered Garrison 9340 | -6/Garrison | Triggered checkpoint 9343 | -6/Garrison | Garrison Relay disabled 9474 | -6/Garrison | Spotted B-75 Beast 9478 | -6/Garrison | Triggered checkpoint 9516 | -6/Garrison | Destroyed B-75 Beast 9532 | -6/Garrison | Assembled breached garrison interior 9539 | -6/Garrison | Lost 3 parts (1u2w) 9547 | -6/Garrison | Destroyed 7 combat bots 9655 | -6/Garrison | Core integrity fell below 50% 9701 | -6/Garrison | Lost 3 parts (1n2u) 9716 | -6/Garrison | Destroyed 18 combat bots 9973 | -6/Garrison | Discovered new exit (range 12) 10237 | -6/Garrison | Lost 7 parts (1p1n1u4w) 10403 | -6/Garrison | Entered Factory 10404 | -6/Factory | Loaded intel: 28 terminal locations 10547 | -6/Factory | Build established: Scavenger-Gunner 10636 | -6/Factory | Joined by Warlord Muscle squad 10907 | -6/Factory | Joined by Warlord Ghost squad 10948 | -6/Factory | Hacking Suite fried by hacking feedback 10949 | -6/Factory | Incoming investigation squad redirected 11005 | -6/Factory | Fabricated Lgt. Regenerative Plating (x1) 11260 | -6/Factory | Watched by a mysterious "MATRIX" hacker. 11442 | -6/Factory | Joined by Warlord Ranger squad 11695 | -6/Factory | Discovered new exit (range 13) 11743 | -6/Factory | Joined by Warlord Chimera squad 11889 | -6/Factory | Discovered exit to Factory (range 4) 12000 | -6/Factory | Identified exit to Lower Caves 12004 | -6/Factory | Entered Lower Caves 12005 | -6/Lower Caves | Encountered a Warlord checkpoint 12025 | -6/Lower Caves | Learned location of Zion (-6) 12549 | -6/Lower Caves | Core integrity fell below 20% 12565 | -6/Lower Caves | Discovered new exit (range 14) 12575 | -6/Lower Caves | Lost 5 parts (1p1n3w) 12595 | -6/Lower Caves | Learned location of 1 exit from Proximity Caves 12639 | -6/Lower Caves | Entered another Lower Caves area 13074 | -6/Lower Caves | Spotted B-75 Beast 13136 | -6/Lower Caves | Destroyed B-75 Beast 13332 | -6/Lower Caves | Destroyed by G-67 Veteran with Field Laser Last Messages --------------- 13289_ Carbon-fiber Leg destroyed. 13290_ System corrupted: Matter fused (-10). 13290_ Slug penetrates G-50 Soldier. 13293_ Neutrino Core destroyed. 13293_ Kicked G-50 Soldier. 13303_ Hvy. Plasma Cannon destroyed. 13305_ Gauss Rifle destroyed. 13307_ Hvy. Plasma Cannon destroyed. 13308_ System corrupted: Carbon-fiber Leg rejected. 13308_ Acquired Carbon-fiber Leg. 13311_ Lgt. Regenerative Plating destroyed. 13330_ G90RA|NPSWYJB3PDTHWO 13330_ G-50 Soldier suffers critical hit (Smash). 13330_ Destroyed Carbon-fiber Leg. 13330_ G-50 Soldier system corrupted by crushing effect. 13330_ G-50 Soldier IFF system glitched. 13330_ Carbon-fiber Leg destroyed. 13331_ G-50 Soldier system terminally corrupted. 13331_ Hvy. Laser fried. 13331_ Adv. Heat Sink fried. Map ----- +----------------------------------------------------+ | ??????????????????????????????????????????? | | ??????????????????????????????????????????? | | ??????????????????????????????????????????? | | ??????????????????????????????????????????? | | ??????????????????????????????????????????? | | ??????????????????????????????????????????? | | ??????????????????????????????????????????? | | ??????????????????????????????????????????? | | ??????????????????????????????????????????? | | ??????????????????????????????????????????? | | ??????????????????????????????????????????? | | ??????????????????????????????????????????? | | ??????????????????????????????????????????? | | ??????????????????????????????????????????? | | ??????????????????????????????????????????? | | ??????????????????????????????????????????? | | ??????????????????????????????????????????? | | ??????????????????????????????????????????? | | ???????????????????#####??????????????????? | | ??????????????????## ##?????????????????? | | ??????????????????# ###???????????###?? | | ????????????????### ###########?# ?? | | ???????????????## g #?# # #?# #?? | | ???????????????# g# #??##^ # #?# #?? | | ???????????????# g #### #^ # ### #?? | | ???????????????## @## ##"" ### #?? | | ????????????????##### ## # #?? | | ????????????????????# # # # ##? | | ????????????????????#######"# # ## ## | | ??????????????????????????## # ### | | ???????????????????????????# ##?# | | ???????????????????????????? ## ###??# | | ???????????????????????????? ####????# | | ???????????????????????????# #??????## | | ???????????????????????????# ???#### | | ???????????????????????????# | | ???????????????????????????# | | ???????????????????????????## ###### | | ????????????????????????????? ?##????# | | ????????????????????????????? ???????# | | ????????????????????????????? ???????# #### | | ?????????????????????????????????????# ???# | | ????????????????????????????????????? ??? | | ???????????????????????????????????? ?? | | ???????????????????????????????????####?? | | ????????????????????????????????????????# | | ????????????????????????????????????????### | | ??????????????????????????????????????????# | | ??????????????????????????????????????????# | | ??????????????????????????????????????????# | +----------------------------------------------------+ Best States ------------- Heat Dissipation 78 Energy Generation 19 Energy Capacity 315 Matter Stores 300 Matter Capacity 300 Sight Range 16 Terrain Scan Density 10 Armor Coverage 375 Evasion (%) 44 Targeting Accuracy 8 Recoil Reduction 2 Offensive Hacking 22 Defensive Hacking 11 Item Schematics ----------------- Huge Storage Unit | -9/Materials | Hacked Plasma Cutter | -9/Materials | Hacked Cooling System | -9/Materials | Scanalyzed Hrd. Light Armor Plating | -9/Materials | Scanalyzed Pulse Rifle | -8/Materials | Hacked Arm. Huge Wheel | -8/Materials | Scanalyzed Combat Drone Bay | -7/Data Miner | Free Lgt. Regenerative Plating | -7/Data Miner | Free Cld. Cesium-ion Thruster | -7/Data Miner | Free Gravity Neutralizer | -7/Data Miner | Free Com. Ion Cannon | -7/Data Miner | Free Gyrokinetic Inverter | -7/Data Miner | Free Adv. Shield Generator | -7/Data Miner | Free Imp. Plasma Cutter | -7/Data Miner | Free Nuclear Pulse Thruster | -7/Data Miner | Free Remote Force Field | -7/Data Miner | Free Adv. Cooling System | -7/Data Miner | Free Lgt. Antimatter Reactor | -7/Data Miner | Free Imp. Fusion Compressor | -7/Data Miner | Free Robot Schematics ------------------ A-15 Conveyor | -7/Data Miner | Free M-22 Extractor | -7/Data Miner | Free B-48 Gladiator | -7/Data Miner | Free E-15 Imp | -7/Data Miner | Free Fabricated ------------ Lgt. Regenerative Plating | x1 | -6/Factory Lgt. Regenerative Plating | x1 | -6/Factory Repaired ---------- Wheel | 55% | -9/Materials Imp. Assault Rifle | 45% | -9/Materials Imp. Assault Rifle | 42% | -9/Materials Arm. Huge Wheel | 10% | -8/Materials Arm. Huge Wheel | 26% | -8/Materials Arm. Huge Wheel | 60% | -8/Materials Arm. Huge Wheel | 60% | -8/Materials Enh. Autogun | 72% | -8/Materials Huge Storage Unit | 32% | -8/Materials Arm. Huge Wheel | 18% | -6/Factory Studied --------- None Alien Tech Used ----------------- None Achievements -------------- I Like You, Cogmind Professional Mechanic Challenges ------------ None Game ------ Seed HeartFluxArmor Manual? 0 Play Time 01:27:32 Cumulative 167.6 hours Start 2026.06.19 @ 11:57:36 End 2026.06.19 @ 13:24:37 Sessions 3 Manual Loads 0 Difficulty Rogue Special Mode None Game No. 308 Rogue 308 Adventurer 0 Explorer 0 Win Type - Total 4 Types 3/0/0/1/0/0/0/0/0/0 Lore% 68 Gallery% 49 Achievement% 46 Wizard Run 0 Options --------- Layout 0 ASCII 0 Keyboard 1 Movement Arrows Keybinds 0 Fullscreen 1 Font 18/Smallcaps Map View 76x50 Zoom Use 20% Tactical HUD 1 Map Filters NONE Filters NONE Steam 1 RUN: b52e8339-bc82-4a6b-a080-74311355c0d5